bitfinex/quotes_BTCUSD_20240728
["timestamp","ask_amount","ask_price","bid_price","bid_amount"]
[1722128619928,1.98348566,68180.0,68179.0,0.000924]
[1722128620153,1.98348566,68180.0,68179.0,0.001924]
[1722128620154,1.75181366,68180.0,68179.0,0.001924]
[1722128620355,1.74881366,68180.0,68179.0,0.00072328]
[1722128620699,1.98348566,68180.0,68179.0,0.00072328]
[1722128621077,2.11028566,68180.0,68179.0,0.00072328]
[1722128621304,2.11028566,68180.0,68179.0,0.00172328]
[1722128621478,2.13828566,68180.0,68179.0,0.00172328]
[1722128622373,2.15419007,68180.0,68179.0,0.00172328]
[1722128622993,2.15418988,68180.0,68179.0,0.00172328]
[1722128623552,1.91951788,68180.0,68179.0,0.00172328]
[1722128624379,2.15418988,68180.0,68179.0,0.00172328]
[1722128624725,2.15418938,68180.0,68179.0,0.00172328]
[1722128625799,2.1389341,68180.0,68179.0,0.00172328]
[1722128625998,2.1541791,68180.0,68179.0,0.00172328]
[1722128627602,1.9195071,68180.0,68179.0,0.00172328]
[1722128628843,2.1541791,68180.0,68179.0,0.00172328]
[1722128629032,2.07575877,68180.0,68179.0,0.00172328]
[1722128629278,2.15430599,68180.0,68179.0,0.00172328]
[1722128630632,1.91963399,68180.0,68179.0,0.00172328]
[1722128631133,1.91963383,68180.0,68179.0,0.00172328]
[1722128631340,2.15430583,68180.0,68179.0,0.00172328]
[1722128631537,1.91963383,68180.0,68179.0,0.00172328]
[1722128632359,1.84108661,68180.0,68179.0,0.00172328]
[1722128632558,1.91939993,68180.0,68179.0,0.00172328]
[1722128632977,1.91939941,68180.0,68179.0,0.00172328]
[1722128634863,1.91933582,68180.0,68179.0,0.00172328]
[1722128635696,1.84108661,68180.0,68179.0,0.00172328]
[1722128635896,1.9194326,68180.0,68179.0,0.00172328]
[1722128636703,1.90418776,68180.0,68179.0,0.00172328]
[1722128637307,1.94755143,68180.0,68179.0,0.00172328]
[1722128637952,2.18222343,68180.0,68179.0,0.00172328]
[1722128638087,1.94755143,68180.0,68179.0,0.00172328]
[1722128639039,1.9475599,68180.0,68179.0,0.00172328]
[1722128640265,1.74693803,68180.0,68179.0,0.00172328]
[1722128640467,1.74693803,68180.0,68179.0,0.14842328]
[1722128640468,0.96233699,68180.0,68179.0,0.14842328]
[1722128640679,0.90598223,68180.0,68179.0,0.14842328]
[1722128640868,0.33663823,68180.0,68179.0,0.14842328]
[1722128641014,0.65581023,68180.0,68179.0,0.14842328]
[1722128641214,0.86848253,68180.0,68179.0,0.14842328]
[1722128641478,0.89081691,68180.0,68179.0,0.14842328]
[1722128641846,0.65614491,68180.0,68179.0,0.14842328]
[1722128642427,0.89081691,68180.0,68179.0,0.14842328]
[1722128642981,0.89501053,68180.0,68179.0,0.14842328]
[1722128643281,0.89001053,68180.0,68179.0,0.14742328]
[1722128643458,0.89301053,68180.0,68179.0,0.14842328]
[1722128644527,0.89315958,68180.0,68179.0,0.14842328]
[1722128645026,0.19949615,68180.0,68179.0,0.14842328]
[1722128645170,0.22197812,68180.0,68179.0,0.14842328]
[1722128645567,0.19949615,68180.0,68179.0,0.14842328]
[1722128645809,0.63600415,68180.0,68179.0,0.14842328]
[1722128646123,0.28399615,68180.0,68179.0,0.14742328]
[1722128646365,0.28099615,68180.0,68179.0,0.14742328]
[1722128646495,0.19949615,68180.0,68179.0,0.14842328]
[1722128646690,0.19649615,68180.0,68179.0,0.14742328]
[1722128647097,0.19649615,68180.0,68179.0,0.15042328]
[1722128647685,0.21910827,68180.0,68179.0,0.15042328]
[1722128648744,0.0688487,68180.0,68179.0,0.15042328]
[1722128648985,0.04623658,68180.0,68179.0,0.15042328]
[1722128649158,0.00084,68187.0,68179.0,0.00372328]
[1722128649159,0.04623658,68185.0,68179.0,0.00372328]
[1722128649328,0.19649615,68184.0,68181.0,0.117333]
[1722128649519,0.04623658,68183.0,68180.0,0.234671]
[1722128649725,0.00084,68187.0,68182.0,0.117333]
[1722128649941,0.15025957,68186.0,68184.0,0.0823]
[1722128650145,0.04781804,68185.0,68183.0,0.1467]
[1722128650357,0.04781804,68185.0,68184.0,0.1467]
[1722128650889,0.15025957,68186.0,68180.0,0.352005]
[1722128650890,0.15025957,68186.0,68181.0,0.117333]
[1722128651002,0.04761002,68185.0,68184.0,0.0644]
[1722128652597,0.04761002,68185.0,68184.0,0.1433]
[1722128654175,0.13211002,68185.0,68184.0,0.1453]
[1722128654397,0.15442643,68185.0,68184.0,0.1453]
[1722128655345,0.06992643,68185.0,68184.0,0.1453]
[1722128656271,0.656668,68185.0,68184.0,0.1453]
[1722128656493,0.656668,68185.0,68184.0,0.002]
[1722128656494,0.891323,68185.0,68184.0,0.002]
[1722128657940,1.125978,68185.0,68184.0,0.002]
[1722128658073,1.26513804,68185.0,68184.0,0.002]
[1722128658617,1.26597804,68185.0,68184.0,0.002]
[1722128658774,1.41623761,68185.0,68184.0,0.002]
[1722128658978,1.26597804,68185.0,68184.0,0.002]
[1722128659218,1.18147804,68185.0,68184.0,0.002]
[1722128659634,0.58668,68180.0,68179.0,0.00072328]
[1722128659953,0.80372604,68180.0,68179.0,0.00072328]
[1722128660449,1.03839804,68180.0,68179.0,0.00072328]
[1722128660772,1.01914826,68180.0,68179.0,0.00072328]
[1722128660974,1.03770986,68180.0,68179.0,0.00072328]
[1722128661318,1.04070986,68180.0,68179.0,0.00072328]
[1722128661952,1.48658186,68180.0,68179.0,0.00072328]
[1722128662645,1.25190986,68180.0,68179.0,0.00072328]
[1722128663276,1.30512514,68180.0,68179.0,0.00072328]
[1722128664171,1.54127206,68180.0,68179.0,0.00072328]
[1722128664581,1.53827206,68180.0,68179.0,0.00072328]
[1722128664784,1.83083163,68180.0,68179.0,0.00072328]
[1722128664949,1.75757983,68180.0,68179.0,0.00072328]
[1722128665151,1.83101022,68180.0,68179.0,0.00072328]
[1722128665579,1.83101022,68180.0,68179.0,0.00172328]
[1722128665580,1.83401022,68180.0,68179.0,0.00172328]
[1722128665820,1.59933822,68180.0,68179.0,0.00172328]
[1722128666854,1.59633822,68180.0,68179.0,0.00072328]
[1722128667013,1.44607865,68180.0,68179.0,0.00072328]
[1722128667209,1.10357865,68180.0,68179.0,0.00172328]
[1722128667401,1.03014826,68180.0,68179.0,0.00172328]
[1722128667600,1.10378069,68180.0,68179.0,0.00172328]
[1722128667992,1.10377687,68180.0,68179.0,0.00172328]
[1722128668619,1.09277687,68180.0,68179.0,0.00072328]
[1722128668824,1.10377687,68180.0,68179.0,0.00172328]
[1722128669924,1.09277687,68180.0,68179.0,0.00072328]
[1722128670336,1.11513428,68180.0,68179.0,0.00172328]
[1722128670734,1.06030905,68180.0,68179.0,0.00172328]
[1722128670945,1.11362385,68180.0,68179.0,0.00172328]
[1722128671990,1.10659903,68180.0,68179.0,0.00172328]
[1722128673922,1.03448085,68180.0,68179.0,0.00172328]
[1722128674071,1.10669929,68180.0,68179.0,0.00172328]
[1722128674695,1.30263812,68180.0,68179.0,0.00172328]
[1722128675266,1.30090642,68180.0,68179.0,0.00172328]
[1722128675884,1.53557842,68180.0,68179.0,0.00172328]
[1722128677222,1.53488094,68180.0,68179.0,0.00172328]
[1722128677422,1.53506055,68180.0,68179.0,0.00172328]
[1722128677804,1.53506001,68180.0,68179.0,0.00172328]
[1722128679473,1.30038801,68180.0,68179.0,0.00172328]
[1722128679661,1.30020879,68180.0,68179.0,0.00172328]
[1722128680225,1.10426996,68180.0,68179.0,0.00172328]
[1722128680621,1.10466269,68180.0,68179.0,0.00172328]
[1722128681441,1.18916269,68180.0,68179.0,0.00172328]
[1722128683466,1.25306269,68180.0,68179.0,0.00172328]
[1722128683903,1.25359056,68180.0,68179.0,0.00172328]
[1722128684195,1.38739851,68180.0,68179.0,0.00172328]
[1722128684884,1.62207051,68180.0,68179.0,0.00172328]
[1722128685856,1.38739851,68180.0,68179.0,0.00172328]
[1722128686592,1.25359056,68180.0,68179.0,0.00172328]
[1722128686969,1.48826256,68180.0,68179.0,0.00172328]
[1722128687211,1.25358351,68180.0,68179.0,0.00172328]
[1722128687628,1.20026371,68180.0,68179.0,0.00172328]
[1722128687791,1.2534674,68180.0,68179.0,0.00172328]
[1722128688152,1.4881394,68180.0,68179.0,0.00172328]
[1722128688470,1.40372697,68180.0,68179.0,0.00172328]
[1722128688706,1.63793231,68180.0,68179.0,0.00172328]
[1722128689470,1.63733427,68180.0,68179.0,0.00172328]
[1722128690306,1.63733377,68180.0,68179.0,0.00172328]
[1722128690508,1.87200577,68180.0,68179.0,0.00172328]
[1722128690710,2.04784577,68180.0,68179.0,0.00172328]
[1722128690908,2.07084577,68180.0,68179.0,0.00172328]
[1722128691109,2.07084577,68180.0,68168.0,7.364e-05]
[1722128691110,0.885385,68169.0,68168.0,7.364e-05]
[1722128691311,1.23025112,68169.0,68168.0,7.364e-05]
[1722128691837,1.16635112,68169.0,68168.0,7.364e-05]
[1722128694227,1.08685112,68169.0,68168.0,0.14467364]
[1722128694438,1.17135112,68169.0,68168.0,0.14467364]
[1722128695373,1.31195673,68169.0,68168.0,0.14467364]
[1722128697027,1.31207971,68169.0,68168.0,0.14467364]
[1722128697361,1.24066699,68169.0,68168.0,0.14467364]
[1722128697557,1.3120797,68169.0,68168.0,0.14467364]
[1722128699354,1.31209885,68169.0,68168.0,0.14467364]
[1722128699937,1.31209885,68169.0,68168.0,7.364e-05]
[1722128700294,1.31205394,68169.0,68168.0,7.364e-05]
[1722128700708,1.40615833,68169.0,68168.0,7.364e-05]
[1722128700919,1.58305833,68169.0,68168.0,7.364e-05]
[1722128701531,1.59176339,68169.0,68168.0,7.364e-05]
[1722128702015,1.58676339,68169.0,68168.0,7.364e-05]
[1722128702444,1.66116339,68169.0,68168.0,0.00107364]
[1722128702648,1.81112759,68169.0,68168.0,0.00107364]
[1722128703169,1.80527191,68169.0,68168.0,0.00107364]
[1722128704281,1.28300234,68169.0,68168.0,0.00107364]
[1722128704814,0.96379234,68169.0,68168.0,0.00107364]
[1722128705006,0.96379234,68169.0,68168.0,0.13877364]
[1722128705007,0.26831228,68169.0,68168.0,0.13877364]
[1722128705409,0.11805271,68169.0,68168.0,0.13877364]
[1722128705686,0.38678061,68169.0,68168.0,0.13877364]
[1722128705974,0.85620061,68169.0,68168.0,0.13877364]
[1722128706178,0.84220395,68169.0,68168.0,0.13777364]
[1722128706386,0.60749395,68169.0,68168.0,0.13777364]
[1722128706587,0.26242895,68169.0,68168.0,0.13777364]
[1722128706810,0.05880938,68169.0,68168.0,0.13777364]
[1722128708024,0.05180938,68169.0,68168.0,0.13777364]
[1722128708233,0.05180938,68169.0,68168.0,0.25513064]
[1722128708442,0.05180938,68169.0,68168.0,0.49284464]
[1722128708652,0.07512979,68198.0,68168.0,0.49284464]
[1722128708653,0.00232731,68185.0,68179.0,0.352014]
[1722128708836,0.00232731,68185.0,68179.0,0.80889]
[1722128708837,0.00084,68180.0,68179.0,0.80889]
[1722128709023,0.01901683,68180.0,68179.0,0.2222]
[1722128709222,0.00084,68187.0,68186.0,0.117326]
[1722128709451,0.00084,68187.0,68186.0,0.70743]
[1722128709610,0.00084,68187.0,68186.0,0.965082]
[1722128710146,0.24992919,68209.0,68198.0,0.489615]
[1722128710147,0.01535319,68209.0,68198.0,0.489615]
[1722128710347,0.01535319,68209.0,68198.0,0.724225]
[1722128710550,0.234553,68215.0,68198.0,0.724225]
[1722128711462,0.234565,68212.0,68198.0,0.255005]
[1722128711775,0.11729,68207.0,68198.0,0.1377]
[1722128712080,0.234575,68209.0,68198.0,0.255005]
[1722128712081,0.117287,68209.0,68198.0,0.255005]
[1722128712459,0.00384,68199.0,68198.0,0.1517]
[1722128713572,0.00284,68199.0,68198.0,0.1377]
[1722128714838,0.00384,68199.0,68198.0,0.1487]
[1722128715242,0.00284,68199.0,68198.0,0.1377]
[1722128715988,0.00284,68199.0,68198.0,0.1487]
[1722128715989,0.00384,68199.0,68198.0,0.1487]
[1722128716521,0.121143,68199.0,68198.0,0.1487]
[1722128717131,0.121143,68199.0,68198.0,0.086]
[1722128717132,0.590357,68199.0,68198.0,0.086]
[1722128717339,0.35575,68199.0,68198.0,0.086]
[1722128717955,0.121143,68199.0,68198.0,0.086]
[1722128718152,0.00384,68199.0,68198.0,0.086]
[1722128718996,0.121143,68199.0,68198.0,0.086]
[1722128719239,0.35575,68199.0,68198.0,0.086]
[1722128719490,1.05035336,68199.0,68198.0,0.086]
[1722128719659,0.74061657,68199.0,68198.0,0.011]
[1722128720211,0.97522357,68199.0,68198.0,0.011]
[1722128721522,0.117318,68191.0,68187.0,0.0822]
[1722128721726,0.23463,68193.0,68187.0,0.0822]
[1722128721952,0.117322,68188.0,68187.0,0.0822]
[1722128722855,0.234636,68191.0,68187.0,0.0822]
[1722128723022,0.38489757,68190.0,68187.0,0.0822]
[1722128723218,0.117322,68188.0,68187.0,0.0822]
[1722128723995,0.15025957,68190.0,68187.0,0.0822]
[1722128723996,0.26757957,68190.0,68187.0,0.0822]
[1722128724295,0.118322,68188.0,68187.0,0.0882]
[1722128724515,0.352967,68188.0,68187.0,0.0882]
[1722128724912,0.351967,68188.0,68187.0,0.0822]
[1722128725277,0.351967,68188.0,68187.0,0.0852]
[1722128725479,0.351967,68188.0,68187.0,0.0822]
[1722128725682,0.73687157,68188.0,68187.0,0.0822]
[1722128725882,0.73787157,68188.0,68187.0,0.0882]
[1722128727587,0.73787157,68188.0,68187.0,0.006]
[1722128727789,0.117333,68182.0,68181.0,0.0657]
[1722128729224,0.118333,68182.0,68181.0,0.0757]
[1722128729446,0.001,68182.0,68181.0,0.0757]
[1722128729851,0.118333,68182.0,68181.0,0.0757]
[1722128731644,0.352999,68182.0,68181.0,0.0757]
[1722128731854,0.12597957,68182.0,68181.0,0.0757]
[1722128732829,0.00864657,68182.0,68181.0,0.0757]
[1722128734222,0.12597957,68182.0,68181.0,0.0757]
[1722128734723,0.36064557,68182.0,68181.0,0.0757]
[1722128735140,0.38783964,68182.0,68181.0,0.0757]
[1722128736355,0.40075926,68182.0,68181.0,0.0757]
[1722128736764,0.78568483,68182.0,68181.0,0.01]
[1722128737286,1.02035083,68182.0,68181.0,0.01]
[1722128737643,1.06827838,68182.0,68181.0,0.01]
[1722128738089,0.2347,68172.0,68168.0,0.00099764]
[1722128738267,0.117354,68170.0,68168.0,0.00099764]
[1722128738665,0.04022428,68169.0,68168.0,0.00099764]
[1722128738875,0.15757928,68169.0,68168.0,0.00099764]
[1722128739538,0.02719407,68169.0,68168.0,0.00099764]
[1722128740279,0.15771865,68169.0,68168.0,0.00099764]
[1722128740514,0.14454907,68169.0,68168.0,0.00099764]
[1722128740723,0.14454907,68169.0,68168.0,0.00699764]
[1722128740871,0.02719407,68169.0,68168.0,0.00699764]
[1722128741075,0.02719407,68169.0,68168.0,0.00099764]
[1722128741278,0.02819407,68169.0,68168.0,0.00799764]
[1722128741482,0.04143267,68169.0,68168.0,0.00799764]
[1722128741950,0.39349767,68169.0,68168.0,0.00799764]
[1722128742182,0.39249767,68169.0,68168.0,0.00099764]
[1722128742568,0.15761904,68169.0,68168.0,0.00099764]
[1722128742932,0.04026404,68169.0,68168.0,0.00099764]
[1722128743158,0.04026404,68169.0,68168.0,0.00699764]
[1722128743159,0.02812043,68169.0,68168.0,0.00699764]
[1722128744349,0.04039303,68169.0,68168.0,0.00099764]
[1722128744547,0.04139303,68169.0,68168.0,0.00799764]
[1722128744785,0.02812043,68169.0,68168.0,0.00799764]
[1722128744943,0.02812043,68169.0,68168.0,0.00099764]
[1722128745139,0.02912043,68169.0,68168.0,0.00699764]
[1722128745373,0.15974901,68169.0,68168.0,0.006924]
[1722128745610,0.77742858,68169.0,68168.0,0.000924]
[1722128745815,0.77842858,68169.0,68168.0,0.007924]
[1722128745996,0.78606444,68169.0,68168.0,0.007924]
[1722128746199,0.78506444,68169.0,68168.0,0.000924]
[1722128746412,0.7850324,68169.0,68168.0,0.000924]
[1722128747644,0.78499945,68169.0,68168.0,0.004924]
[1722128747850,0.78499945,68169.0,68168.0,0.000924]
[1722128748263,0.78599945,68169.0,68168.0,0.007924]
[1722128748470,0.78599945,68169.0,68168.0,0.000924]
[1722128748820,0.78599945,68169.0,68168.0,0.002924]
[1722128749015,0.78499945,68169.0,68168.0,0.002924]
[1722128749342,0.78599945,68169.0,68168.0,0.009924]
[1722128750501,0.75887902,68169.0,68168.0,0.009924]
[1722128750905,0.76242735,68169.0,68168.0,0.009924]
[1722128751219,0.76142735,68169.0,68168.0,0.000924]
[1722128751425,0.76142735,68169.0,68168.0,0.002924]
[1722128751605,0.76142735,68169.0,68168.0,0.000924]
[1722128751802,0.99613735,68169.0,68168.0,0.000924]
[1722128752025,0.99713735,68169.0,68168.0,0.007924]
[1722128752230,0.76242735,68169.0,68168.0,0.000924]
[1722128752631,0.76242735,68169.0,68168.0,0.002924]
[1722128752968,0.76142735,68169.0,68168.0,0.000924]
[1722128753941,0.76226735,68169.0,68168.0,0.000924]
[1722128754153,0.74551043,68169.0,68168.0,0.000924]
[1722128754491,0.76216934,68169.0,68168.0,0.000924]
[1722128754616,0.76216957,68169.0,68168.0,0.000924]
[1722128754822,0.76316957,68169.0,68168.0,0.007924]
[1722128755229,0.76216957,68169.0,68168.0,0.000924]
[1722128755434,0.76216957,68169.0,68168.0,0.002924]
[1722128755840,0.76216957,68169.0,68168.0,0.000924]
[1722128756042,0.76216957,68169.0,68168.0,0.007924]
[1722128756043,0.76316957,68169.0,68168.0,0.007924]
[1722128756393,0.76324088,68169.0,68168.0,0.000924]
[1722128756737,0.76324088,68169.0,68168.0,0.002924]
[1722128757524,0.77032079,68169.0,68168.0,0.002924]
[1722128757676,0.7870664,68169.0,68168.0,0.002924]
[1722128757877,0.7860664,68169.0,68168.0,0.000924]
[1722128758260,0.7870664,68169.0,68168.0,0.007924]
[1722128758465,0.7870664,68169.0,68168.0,0.000924]
[1722128758466,0.7860664,68169.0,68168.0,0.000924]
[1722128758884,0.7860664,68169.0,68168.0,0.002924]
[1722128759171,0.7860664,68169.0,68168.0,0.000924]
[1722128759565,0.7870664,68169.0,68168.0,0.007924]
[1722128759764,0.7870664,68169.0,68168.0,0.000924]
[1722128760168,1.08651977,68169.0,68168.0,0.000924]
[1722128760589,0.7870664,68169.0,68168.0,0.000924]
[1722128760812,1.02173019,68169.0,68168.0,0.000924]
[1722128761205,1.15754795,68169.0,68168.0,0.002924]
[1722128761400,1.13273759,68169.0,68168.0,0.000924]
[1722128761600,1.1549695,68169.0,68168.0,0.000924]
[1722128761803,1.1559695,68169.0,68168.0,0.007924]
[1722128762007,1.1559695,68169.0,68168.0,0.000924]
[1722128762413,1.1559695,68169.0,68168.0,0.003924]
[1722128762742,1.1549695,68169.0,68168.0,0.003924]
[1722128762927,1.1559695,68169.0,68168.0,0.010924]
[1722128763131,1.15637927,68169.0,68168.0,0.010924]
[1722128763675,1.15636665,68169.0,68168.0,0.010924]
[1722128764082,1.15536665,68169.0,68168.0,0.000924]
[1722128764350,1.15536665,68169.0,68168.0,0.003924]
[1722128765462,1.15536164,68169.0,68168.0,0.003924]
[1722128765680,1.15636164,68169.0,68168.0,0.010924]
[1722128765894,1.15536164,68169.0,68168.0,0.000924]
[1722128766157,1.15536164,68169.0,68168.0,0.003924]
[1722128767408,1.15536164,68169.0,68168.0,0.000924]
[1722128767835,1.15636164,68169.0,68168.0,0.007924]
[1722128768049,1.15536164,68169.0,68168.0,0.000924]
[1722128768481,1.15636164,68169.0,68168.0,0.006924]
[1722128768709,1.15636164,68169.0,68168.0,0.000924]
[1722128769138,1.15736164,68169.0,68168.0,0.007924]
[1722128769349,1.15736164,68169.0,68168.0,0.000924]
[1722128769350,1.15536164,68169.0,68168.0,0.000924]
[1722128769764,1.15540491,68169.0,68168.0,0.000924]
[1722128770004,0.92069491,68169.0,68168.0,0.000924]
[1722128771302,0.85324234,68169.0,68168.0,0.006924]
[1722128771519,0.92883785,68169.0,68168.0,0.006924]
[1722128771724,0.92783785,68169.0,68168.0,0.000924]
[1722128771931,0.92883785,68169.0,68168.0,0.007924]
[1722128772141,0.92883785,68169.0,68168.0,0.000924]
[1722128772688,0.92883785,68169.0,68168.0,0.006924]
[1722128772689,1.26383163,68169.0,68168.0,0.006924]
[1722128772883,1.40123163,68169.0,68168.0,0.006924]
[1722128773109,1.40230172,68169.0,68168.0,0.013924]
[1722128773320,1.30301794,68169.0,68168.0,0.013924]
[1722128773765,1.30271737,68169.0,68168.0,0.013924]
[1722128774372,1.30071737,68169.0,68168.0,0.000924]
[1722128774733,1.30171737,68169.0,68168.0,0.006924]
[1722128774931,1.30071737,68169.0,68168.0,0.000924]
[1722128775396,1.30071737,68169.0,68168.0,0.002924]
[1722128775397,1.30014283,68169.0,68168.0,0.002924]
[1722128776247,1.3001422,68169.0,68168.0,0.002924]
[1722128776448,1.2156422,68169.0,68168.0,0.002924]
[1722128776632,0.3731122,68169.0,68168.0,0.002924]
[1722128776837,0.6078222,68169.0,68168.0,0.002924]
[1722128777287,0.8425322,68169.0,68168.0,0.002924]
[1722128778561,0.9270322,68169.0,68168.0,0.002924]
[1722128779397,0.117362,68165.0,68164.0,0.061604]
[1722128779556,0.28985348,68165.0,68164.0,0.061604]
[1722128779760,0.31803364,68165.0,68164.0,0.061604]
[1722128780596,0.55275764,68165.0,68164.0,0.061604]
[1722128781140,0.31903364,68165.0,68164.0,0.068604]
[1722128782720,0.29828534,68165.0,68164.0,0.068604]
[1722128782942,0.31961476,68165.0,68164.0,0.068604]
[1722128783558,0.63883876,68165.0,68164.0,0.068604]
[1722128783879,0.69425955,68165.0,68164.0,0.068604]
[1722128784086,0.63883876,68165.0,68164.0,0.068604]
[1722128784440,0.69165153,68165.0,68164.0,0.061604]
[1722128784842,0.63883876,68165.0,68164.0,0.066604]
[1722128785039,0.69064433,68165.0,68164.0,0.066604]
[1722128785455,0.63683133,68165.0,68164.0,0.066604]
[1722128786077,0.63693892,68165.0,68164.0,0.066604]
[1722128786604,0.63693892,68165.0,68164.0,0.067528]
[1722128786735,0.6907959,68165.0,68164.0,0.067528]
[1722128787176,0.63693892,68165.0,68164.0,0.067528]
[1722128789302,0.61750934,68165.0,68164.0,0.067528]
[1722128789507,0.63656619,68165.0,68164.0,0.067528]
[1722128789746,0.69012717,68165.0,68164.0,0.067528]
[1722128790406,0.60562717,68165.0,68164.0,0.067528]
[1722128790990,0.60562717,68165.0,68164.0,0.005924]
[1722128791136,0.58339526,68165.0,68164.0,0.005924]
[1722128791338,0.60832151,68165.0,68164.0,0.005924]
[1722128792718,0.53570368,68165.0,68164.0,0.005924]
[1722128792921,0.5551018,68165.0,68164.0,0.005924]
[1722128793127,0.60898779,68165.0,68164.0,0.005924]
[1722128793333,0.60898833,68165.0,68164.0,0.005924]
[1722128794266,0.37426433,68165.0,68164.0,0.005924]
[1722128794612,0.05275646,68165.0,68164.0,0.260188]
[1722128794750,0.05275646,68165.0,68164.0,0.142824]
[1722128794950,0.04353164,68165.0,68164.0,0.142824]
[1722128795413,0.04353164,68165.0,68164.0,0.260188]
[1722128795795,0.04426894,68165.0,68164.0,0.260188]
[1722128796212,0.04426894,68165.0,68164.0,0.729644]
[1722128796418,0.04426894,68165.0,68164.0,0.814144]
[1722128796622,0.04326894,68165.0,68164.0,1.043872]
[1722128796825,0.04426894,68165.0,68164.0,1.049872]
[1722128797031,0.001,68165.0,68164.0,1.049872]
[1722128798106,0.002,68165.0,68164.0,1.055872]
[1722128798413,0.00084,68169.0,68168.0,0.491771]
[1722128798613,0.00084,68169.0,68168.0,0.49325831]
[1722128799892,0.00084,68169.0,68168.0,0.14118731]
[1722128800042,0.01853654,68169.0,68168.0,0.1397]
[1722128800245,0.01853654,68169.0,68168.0,0.012]
[1722128800246,0.66300889,68169.0,68168.0,0.012]
[1722128800465,0.88112387,68169.0,68168.0,0.012]
[1722128802272,0.88111275,68169.0,68168.0,0.012]
[1722128802633,0.86342733,68169.0,68168.0,0.012]
[1722128802866,0.88108974,68169.0,68168.0,0.012]
[1722128803063,0.79658974,68169.0,68168.0,0.012]
[1722128803286,0.117362,68165.0,68164.0,0.000924]
[1722128803639,0.16715023,68165.0,68164.0,0.000924]
[1722128803842,0.17509214,68165.0,68164.0,0.000924]
[1722128804202,0.32535171,68165.0,68164.0,0.000924]
[1722128804603,0.55963375,68165.0,68164.0,0.000924]
[1722128804799,0.79535775,68165.0,68164.0,0.010924]
[1722128805041,0.56063375,68165.0,68164.0,0.010924]
[1722128805598,0.55308549,68165.0,68164.0,0.010924]
[1722128807289,0.55208549,68165.0,68164.0,0.000924]
[1722128807494,0.55308549,68165.0,68164.0,0.009924]
[1722128807665,0.55290893,68165.0,68164.0,0.009924]
[1722128808210,0.78663293,68165.0,68164.0,0.000924]
[1722128808433,0.55190893,68165.0,68164.0,0.001924]
[1722128808687,0.55159573,68165.0,68164.0,0.001924]
[1722128808823,0.55159571,68165.0,68164.0,0.000924]
[1722128809024,0.55259571,68165.0,68164.0,0.009924]
[1722128809641,0.55259571,68165.0,68164.0,0.149624]
[1722128809642,0.0504267,68165.0,68164.0,0.149624]
[1722128810371,0.0504267,68165.0,68164.0,0.140624]
[1722128810372,0.0494267,68165.0,68164.0,0.140624]
[1722128810621,0.0504267,68165.0,68164.0,0.14211131]
[1722128810821,0.0494267,68165.0,68164.0,0.14211131]
[1722128811021,0.0494267,68165.0,68164.0,0.140624]
[1722128811222,0.0504267,68165.0,68164.0,0.501716]
[1722128811570,0.04248479,68165.0,68164.0,0.501716]
[1722128811879,0.04420766,68165.0,68164.0,0.501716]
[1722128812080,0.03920766,68165.0,68164.0,0.501716]
[1722128812322,0.02607661,68165.0,68164.0,0.501716]
[1722128812532,0.00084,68169.0,68166.0,0.11736]
[1722128813104,0.00084,68169.0,68165.0,0.117361]
[1722128813345,0.00084,68169.0,68164.0,0.149624]
[1722128813346,0.00084,68169.0,68166.0,0.117359]
[1722128813700,0.00084,68169.0,68166.0,0.122359]
[1722128813901,0.00184,68169.0,68166.0,0.122359]
[1722128814103,0.00184,68169.0,68166.0,0.117359]
[1722128814308,0.00284,68169.0,68166.0,0.117359]
[1722128814514,0.00284,68169.0,68165.0,0.12384931]
[1722128814718,0.00184,68169.0,68166.0,0.11736]
[1722128815060,0.00284,68169.0,68168.0,0.352071]
[1722128815272,0.00084,68169.0,68168.0,0.117357]
[1722128815483,0.00084,68169.0,68168.0,0.352071]
[1722128815905,0.00084,68169.0,68168.0,0.117357]
[1722128816300,0.00084,68169.0,68168.0,0.352071]
[1722128817244,0.02691661,68169.0,68168.0,0.352071]
[1722128817873,0.00084,68169.0,68168.0,0.352071]
[1722128818457,0.00084,68169.0,68168.0,0.362071]
[1722128818458,0.00184,68169.0,68168.0,0.362071]
[1722128819404,0.00184,68169.0,68168.0,0.733985]
[1722128819405,0.02791661,68169.0,68168.0,0.733985]
[1722128819610,0.02791661,68169.0,68168.0,0.968699]
[1722128819611,0.00184,68169.0,68168.0,0.968699]
[1722128819809,0.00184,68169.0,68168.0,1.45567257]
[1722128820020,0.02885086,68181.0,68180.0,0.352008]
[1722128820258,0.04615466,68181.0,68180.0,0.489208]
[1722128820483,0.117314,68193.0,68185.0,0.117327]
[1722128820667,0.2015035,68192.0,68185.0,0.117327]
[1722128820871,0.2015035,68192.0,68183.0,0.234662]
[1722128820872,0.05124393,68191.0,68183.0,0.234662]
[1722128821079,0.20125546,68190.0,68187.0,0.117323]
[1722128821238,0.05099589,68189.0,68188.0,0.117322]
[1722128821464,0.04259823,68189.0,68188.0,0.117322]
[1722128821757,0.04259823,68189.0,68188.0,0.427367]
[1722128821758,0.05964797,68189.0,68188.0,0.427367]
[1722128821995,0.05099495,68189.0,68188.0,0.427367]
[1722128822216,0.03394521,68189.0,68188.0,0.489167]
[1722128822389,0.03377278,68189.0,68188.0,0.1372]
[1722128822617,0.117307,68197.0,68188.0,0.254522]
[1722128822758,0.20022928,68196.0,68189.0,0.11732]
[1722128822962,0.04996971,68195.0,68189.0,0.11732]
[1722128823156,0.1589516,68196.0,68189.0,0.11732]
[1722128823157,0.20022928,68194.0,68189.0,0.11732]
[1722128823366,0.04997018,68193.0,68189.0,0.11732]
[1722128823577,0.04997041,68192.0,68189.0,0.11732]
[1722128823925,0.04997041,68191.0,68188.0,0.1372]
[1722128824127,0.00867603,68191.0,68188.0,0.192722]
[1722128824618,0.15025957,68193.0,68188.0,0.187722]
[1722128824843,0.00867282,68190.0,68189.0,0.003]
[1722128825181,0.03204308,68190.0,68189.0,0.003]
[1722128825364,0.00867282,68190.0,68189.0,0.003]
[1722128825825,0.03132666,68190.0,68189.0,0.003]
[1722128825982,0.00867282,68190.0,68189.0,0.12032]
[1722128826185,0.00867282,68190.0,68189.0,0.354961]
[1722128826575,0.15025957,68193.0,68189.0,0.234641]
[1722128826772,0.03128573,68192.0,68191.0,0.117317]
[1722128826976,0.03128573,68192.0,68189.0,0.234641]
[1722128826977,0.04043921,68192.0,68189.0,0.123319]
[1722128827226,0.00867923,68192.0,68189.0,0.123319]